fUSD/lending_fUSD_20250616
["ID","MTS","AMOUNT","RATE_DAILY","PERIOD"]
[366119300,1750073459572,-1168.11,0.00016602,2]
[366119301,1750073459582,-782.7,0.00016602,2]
[366119302,1750073459592,-490.0,0.00016602,2]
[366119303,1750073459601,-490.0,0.00016602,2]
[366119304,1750073459611,-504.7,0.00016602,2]
[366119305,1750073459621,-1157.09,0.00016602,2]
[366119306,1750073459631,-614.28,0.00016602,2]
[366119307,1750073459641,-490.0,0.00016602,2]
[366119308,1750073459651,-1336.1,0.00016602,2]
[366119309,1750073459661,-495.59,0.00016602,2]
[366119310,1750073459671,-1106.81,0.00016602,2]
[366119311,1750073459682,-1303.22,0.00016602,2]
[366119312,1750073459692,-490.0,0.00016602,2]
[366119313,1750073459702,-587.02,0.00016602,2]
[366119314,1750073459713,-1629.62,0.00016602,2]
[366119315,1750073459725,-583.33,0.00016602,2]
[366119316,1750073459736,-1111.01,0.00016602,2]
[366119317,1750073459747,-805.81,0.00016602,2]
[366119318,1750073459757,-490.86,0.00016602,2]
[366119319,1750073459768,-490.0,0.00016602,2]
[366119320,1750073459779,-490.0,0.00016602,2]
[366119321,1750073459789,-490.0,0.00016602,2]
[366119322,1750073459799,-490.0,0.00016602,2]
[366119323,1750073459810,-490.0,0.00016602,2]
[366119324,1750073459820,-1069.94,0.00016602,2]
[366119325,1750073459830,-526.93,0.00016602,2]
[366119326,1750073459840,-151.0,0.00016602,2]
[366119327,1750073459850,-151.0,0.00016602,2]
[366119328,1750073459860,-267.718482,0.00016602,2]
[366119329,1750073459870,-490.0,0.00016602,2]
[366119330,1750073459879,-490.0,0.00016602,2]
[366119331,1750073459889,-513.43,0.00016602,2]
[366119332,1750073459899,-703.91,0.00016602,2]
[366119333,1750073459909,-490.0,0.00016602,2]
[366119334,1750073459919,-1388.45,0.00016602,2]
[366119335,1750073459928,-490.0,0.00016602,2]
[366119336,1750073459938,-1093.15,0.00016602,2]
[366119337,1750073459955,-490.0,0.00016602,2]
[366119338,1750073459964,-490.0,0.00016602,2]
[366119339,1750073459981,-1036.83,0.00016602,2]
[366119340,1750073459991,-932.92,0.00016602,2]
[366119341,1750073460001,-415.56596107,0.00016602,2]
[366119342,1750073460012,-1043.06,0.00016602,2]
[366119343,1750073460022,-490.0,0.00016602,2]
[366119344,1750073460035,-1008.32,0.00016602,2]
[366119345,1750073460045,-8743.58,0.00016602,2]
[366119346,1750073460057,-490.0,0.00016602,2]
[366119347,1750073460069,-805.86,0.00016602,2]
[366119348,1750073460081,-958.42,0.00016602,2]
[366119349,1750073460092,-575.35,0.00016602,2]
[366119350,1750073460103,-753.27,0.00016602,2]
[366119351,1750073460114,-570.99,0.00016602,2]
[366119352,1750073460124,-688.78,0.00016602,2]
[366119353,1750073460135,-1466.03,0.00016602,2]
[366119354,1750073460146,-19848.8,0.00016602,2]
[366119355,1750073460156,-1625.75,0.00016602,2]
[366119356,1750073460167,-490.0,0.00016602,2]
[366119357,1750073460178,-924.53,0.00016602,2]
[366119358,1750073460188,-1221.97,0.00016602,2]
[366119359,1750073460199,-8879.42,0.00016602,2]
[366119360,1750073460210,-490.0,0.00016602,2]
[366119361,1750073460220,-1180.0,0.00016602,2]
[366119362,1750073460231,-1592.24,0.00016602,2]
[366119363,1750073460242,-320.000609,0.00016602,2]
[366119364,1750073460252,-320.000609,0.00016602,2]
[366119365,1750073460262,-1874.53,0.00016602,2]
[366119366,1750073460273,-320.000609,0.00016602,2]
[366119367,1750073460283,-320.000609,0.00016602,2]
[366119368,1750073460294,-320.000609,0.00016602,2]
[366119369,1750073460305,-1319.95,0.00016602,2]
[366119370,1750073460315,-1204.22,0.00016602,2]
[366119371,1750073460329,-3445.94,0.00016602,2]
[366119372,1750073460339,-1547.91,0.00016602,2]
[366119373,1750073460350,-490.0,0.00016602,2]
[366119374,1750073460360,-320.000609,0.00016602,2]
[366119375,1750073460371,-320.000609,0.00016602,2]
[366119376,1750073460381,-320.000609,0.00016602,2]
[366119377,1750073460391,-320.000609,0.00016602,2]
[366119378,1750073460404,-3420.5,0.00016602,2]
[366119379,1750073460419,-490.0,0.00016602,2]
[366119380,1750073460430,-320.000609,0.00016602,2]
[366119381,1750073460440,-2045.08,0.00016602,2]
[366119382,1750073460451,-423.11114781,0.00016602,2]
[366119383,1750073460461,-490.0,0.00016602,2]
[366119384,1750073460472,-490.0,0.00016602,2]
[366119385,1750073460482,-707.12,0.00016602,2]
[366119386,1750073460492,-151.0,0.00016602,2]
[366119387,1750073460503,-151.0,0.00016602,2]
[366119388,1750073460513,-5270.49,0.00016602,2]
[366119389,1750073460524,-2393.72,0.00016602,2]
[366119390,1750073460534,-151.0,0.00016602,2]
[366119391,1750073460544,-151.0,0.00016602,2]
[366119392,1750073460554,-151.0,0.00016602,2]
[366119393,1750073460565,-151.0,0.00016602,2]
[366119394,1750073460576,-490.0,0.00016602,2]
[366119395,1750073460587,-213.148039,0.00016602,2]
[366119396,1750073460596,-490.0,0.00016602,2]
[366119397,1750073460607,-648.64,0.00016602,2]
[366119398,1750073460617,-1188.62,0.00016602,2]
[366119399,1750073460627,-1697.0,0.00016602,2]
[366119400,1750073460638,-490.0,0.00016602,2]
[366119401,1750073460649,-1864.25,0.00016602,2]
[366119402,1750073460661,-490.0,0.00016602,2]
[366119403,1750073460671,-151.0,0.00016602,2]
[366119404,1750073460681,-1281.31,0.00016602,2]
[366119405,1750073460692,-151.0,0.00016602,2]
[366119406,1750073460702,-151.0,0.00016602,2]
[366119407,1750073460713,-625.28,0.00016602,2]
[366119408,1750073460723,-1059.09,0.00016602,2]
[366119409,1750073460733,-151.0,0.00016602,2]
[366119410,1750073460743,-490.0,0.00016602,2]
[366119411,1750073460752,-3975.05,0.00016602,2]
[366119412,1750073460762,-902.81,0.00016602,2]
[366119413,1750073460773,-216.008136,0.00016602,2]
[366119414,1750073460782,-686.46,0.00016602,2]
[366119415,1750073460792,-216.008136,0.00016602,2]
[366119416,1750073460803,-822.27,0.00016602,2]
[366119417,1750073460813,-216.008136,0.00016602,2]
[366119418,1750073460823,-490.0,0.00016602,2]
[366119419,1750073460834,-1093.15,0.00016602,2]
[366119420,1750073460844,-216.008136,0.00016602,2]
[366119421,1750073460854,-1022.47,0.00016602,2]
[366119422,1750073460864,-1031.95,0.00016602,2]
[366119423,1750073460875,-2800.1,0.00016602,2]
[366119424,1750073460885,-490.0,0.00016602,2]
[366119425,1750073460896,-584.07,0.00016602,2]
[366119426,1750073460907,-216.008136,0.00016602,2]
[366119427,1750073460917,-216.008136,0.00016602,2]
[366119428,1750073460927,-216.008136,0.00016602,2]
[366119429,1750073460937,-490.0,0.00016602,2]
[366119430,1750073460948,-490.0,0.00016602,2]
[366119431,1750073460958,-216.008136,0.00016602,2]
[366119432,1750073460968,-151.0,0.00016602,2]
[366119433,1750073460978,-1458.81,0.00016602,2]
[366119434,1750073460988,-151.0,0.00016602,2]
[366119435,1750073460998,-151.0,0.00016602,2]
[366119436,1750073461009,-151.0,0.00016602,2]
[366119437,1750073461018,-925.96,0.00016602,2]
[366119438,1750073461028,-490.0,0.00016602,2]
[366119439,1750073461038,-892.09,0.00016602,2]
[366119440,1750073461049,-490.0,0.00016602,2]
[366119441,1750073461059,-2055.06,0.00016602,2]
[366119442,1750073461069,-199.703375,0.00016602,2]
[366119443,1750073461079,-490.0,0.00016602,2]
[366119444,1750073461090,-199.703375,0.00016602,2]
[366119445,1750073461100,-490.0,0.00016602,2]
[366119446,1750073461110,-199.703375,0.00016602,2]
[366119447,1750073461120,-3780.68,0.00016602,2]
[366119448,1750073461130,-490.0,0.00016602,2]
[366119449,1750073461141,-199.703375,0.00016602,2]
[366119450,1750073461151,-1207.63,0.00016602,2]
[366119451,1750073461162,-199.703375,0.00016602,2]
[366119452,1750073461172,-199.703375,0.00016602,2]
[366119453,1750073461182,-199.703375,0.00016602,2]
[366119454,1750073461193,-199.703375,0.00016602,2]
[366119455,1750073461203,-151.0,0.00016602,2]
[366119456,1750073461213,-151.0,0.00016602,2]
[366119457,1750073461223,-151.0,0.00016602,2]
[366119458,1750073461233,-151.0,0.00016602,2]
[366119459,1750073461244,-2934.41,0.00016602,2]
[366119460,1750073461253,-295.04757702,0.00016602,2]
[366119461,1750073461264,-1734.49,0.00016602,2]
[366119462,1750073461274,-490.0,0.00016602,2]
[366119463,1750073461284,-490.0,0.00016602,2]
[366119464,1750073461294,-490.0,0.00016602,2]
[366119465,1750073461304,-1325.05,0.00016602,2]
[366119466,1750073461315,-807.28,0.00016602,2]
[366119467,1750073461334,-15470.1,0.00016602,2]
[366119468,1750073461348,-7433.18,0.00016602,2]
[366119469,1750073461358,-490.0,0.00016602,2]
[366119470,1750073461368,-6096.92,0.00016602,2]
[366119471,1750073461379,-1316.46,0.00016602,2]
[366119472,1750073461389,-490.0,0.00016602,2]
[366119473,1750073461399,-490.0,0.00016602,2]
[366119474,1750073461410,-1397.86,0.00016602,2]
[366119475,1750073461420,-490.0,0.00016602,2]
[366119476,1750073461769,-309.92,0.00016602,2]
[366119477,1750073461846,-500.84,0.00016602,2]
[366119478,1750073461857,-490.0,0.00016602,2]
[366119479,1750073461867,-4541.62,0.00016602,2]
[366119480,1750073461876,-636.47,0.00016602,2]
[366119481,1750073461885,-1128.3,0.00016602,2]
[366119482,1750073461896,-3284.74,0.00016602,2]
[366119483,1750073461907,-3728.27,0.00016602,2]
[366119484,1750073461918,-490.0,0.00016602,2]
[366119485,1750073461927,-508.87,0.00016602,2]
[366119486,1750073461937,-771.16,0.00016602,2]
[366119487,1750073461947,-490.0,0.00016602,2]
[366119488,1750073461958,-873.59,0.00016602,2]
[366119489,1750073461968,-636.48,0.00016602,2]
[366119490,1750073461979,-3154.7,0.00016602,2]
[366119491,1750073461988,-1268.27,0.00016602,2]
[366119492,1750073461998,-13515.53,0.00016602,2]
[366119493,1750073462007,-866.45,0.00016602,2]
[366119494,1750073462017,-490.0,0.00016602,2]
[366119495,1750073462027,-2856.11,0.00016602,2]
[366119496,1750073462037,-933.53,0.00016602,2]
[366119497,1750073462047,-490.0,0.00016602,2]
[366119498,1750073462057,-490.0,0.00016602,2]
[366119499,1750073462067,-151.0,0.00016602,2]
[366119500,1750073462077,-490.0,0.00016602,2]
[366119501,1750073462087,-151.0,0.00016602,2]
[366119502,1750073462097,-3685.08,0.00016602,2]
[366119503,1750073462107,-151.0,0.00016602,2]
[366119504,1750073462117,-785.02,0.00016602,2]
[366119505,1750073462127,-151.0,0.00016602,2]
[366119506,1750073462137,-1489.61,0.00016602,2]
[366119507,1750073462147,-1979.87,0.00016602,2]
[366119508,1750073462159,-928.45,0.00016602,2]
[366119509,1750073462169,-490.0,0.00016602,2]
[366119510,1750073462179,-4534.64,0.00016602,2]
[366119511,1750073462189,-506.02,0.00016602,2]
[366119512,1750073462200,-8839.01,0.00016602,2]
[366119513,1750073462209,-1020.06,0.00016602,2]
[366119514,1750073462220,-1310.12,0.00016602,2]
[366119515,1750073462231,-682.12,0.00016602,2]
[366119516,1750073462241,-2298.37,0.00016602,2]
[366119517,1750073462251,-490.0,0.00016602,2]
[366119518,1750073462260,-852.06,0.00016602,2]
[366119519,1750073462270,-1720.83,0.00016602,2]
[366119520,1750073462280,-151.0,0.00016602,2]
[366119521,1750073462290,-151.0,0.00016602,2]
[366119522,1750073462300,-2414.02,0.00016602,2]
[366119523,1750073462311,-151.0,0.00016602,2]
[366119524,1750073462322,-151.0,0.00016602,2]
[366119525,1750073462333,-1824.45,0.00016602,2]
[366119526,1750073462343,-1709.7,0.00016602,2]
[366119527,1750073462353,-1686.95,0.00016602,2]
[366119528,1750073462363,-1556.15,0.00016602,2]
[366119529,1750073462373,-490.0,0.00016602,2]
[366119530,1750073462383,-759.35,0.00016602,2]
[366119531,1750073462394,-529.59,0.00016602,2]
[366119532,1750073462409,-1299.84,0.00016602,2]
[366119533,1750073462419,-1475.98,0.00016602,2]
[366119534,1750073462430,-3767.53,0.00016602,2]
[366119535,1750073462440,-490.0,0.00016602,2]
[366119536,1750073462451,-1729.11,0.00016602,2]
[366119537,1750073462460,-490.0,0.00016602,2]
[366119538,1750073462472,-544.47951432,0.00016602,2]
[366119539,1750073462482,-1173.71,0.00016602,2]
[366119540,1750073462491,-482.92118788,0.00016602,2]
[366119541,1750073462501,-490.0,0.00016602,2]
[366119542,1750073462511,-1109.18,0.00016602,2]
[366119543,1750073462522,-1453.01,0.00016602,2]
[366119544,1750073462532,-490.0,0.00016602,2]
[366119545,1750073462542,-4250.71,0.00016602,2]
[366119546,1750073462552,-1989.15,0.00016602,2]
[366119547,1750073462562,-2132.24,0.00016602,2]
[366119548,1750073462572,-831.82,0.00016602,2]
[366119549,1750073462582,-490.0,0.00016602,2]
[366119550,1750073462591,-490.0,0.00016602,2]
[366119551,1750073462601,-3287.58,0.00016602,2]
[366119552,1750073462610,-490.0,0.00016602,2]
[366119553,1750073462620,-1211.69147,0.00016602,2]
[366119554,1750073462629,-1031.64,0.00016602,2]
[366119555,1750073462639,-1211.69147,0.00016602,2]
[366119556,1750073462648,-1211.69147,0.00016602,2]
[366119557,1750073462659,-1211.69147,0.00016602,2]
[366119558,1750073462668,-1211.69147,0.00016602,2]
[366119559,1750073462677,-2163.56,0.00016602,2]
[366119560,1750073462686,-5171.7,0.00016602,2]
[366119561,1750073462695,-1083.66,0.00016602,2]
[366119562,1750073462705,-2009.85,0.00016602,2]
[366119563,1750073462714,-1211.69147,0.00016602,2]
[366119564,1750073462724,-1211.69147,0.00016602,2]
[366119565,1750073462733,-1710.17,0.00016602,2]
[366119566,1750073462743,-1211.69147,0.00016602,2]
[366119567,1750073462752,-1211.69147,0.00016602,2]
[366119568,1750073462761,-490.0,0.00016602,2]
[366119569,1750073462770,-1958.5,0.00016602,2]
[366119570,1750073462779,-1211.69147,0.00016602,2]
[366119571,1750073462788,-1271.68,0.00016602,2]
[366119572,1750073462798,-1832.85,0.00016602,2]
[366119573,1750073462807,-490.0,0.00016602,2]
[366119574,1750073462816,-557.89,0.00016602,2]
[366119575,1750073462826,-5580.0,0.00016602,2]
[366119576,1750073462836,-2328.58,0.00016602,2]
[366119577,1750073462846,-490.0,0.00016602,2]
[366119578,1750073462856,-734.34,0.00016602,2]
[366119579,1750073462866,-3033.48,0.00016602,2]
[366119580,1750073462875,-1205.11,0.00016602,2]
[366119581,1750073462885,-1711.41,0.00016602,2]
[366119582,1750073462894,-490.0,0.00016602,2]
[366119583,1750073462904,-985.58,0.00016602,2]
[366119584,1750073462913,-490.0,0.00016602,2]
[366119585,1750073462923,-882.17,0.00016602,2]
[366119586,1750073462932,-20251.09,0.00016602,2]
[366119587,1750073462942,-1632.41,0.00016602,2]
[366119588,1750073462951,-1475.26,0.00016602,2]
[366119589,1750073462961,-704.67,0.00016602,2]
[366119590,1750073462970,-490.0,0.00016602,2]
[366119591,1750073462979,-1031.3,0.00016602,2]
[366119592,1750073462989,-3493.3,0.00016602,2]
[366119593,1750073462999,-649.56,0.00016602,2]
[366119594,1750073463010,-853.99,0.00016602,2]
[366119595,1750073463020,-3168.13,0.00016602,2]
[366119596,1750073463030,-524.35,0.00016602,2]
[366119597,1750073463040,-625.31,0.00016602,2]
[366119598,1750073463051,-1016.98,0.00016602,2]
[366119599,1750073463061,-694.27,0.00016602,2]
[366119600,1750073463072,-1477.42,0.00016602,2]
[366119601,1750073463082,-6366.9,0.00016602,2]
[366119602,1750073463092,-1844.62,0.00016602,2]
[366119603,1750073463102,-490.0,0.00016602,2]
[366119604,1750073463112,-2581.49,0.00016602,2]
[366119605,1750073463123,-490.0,0.00016602,2]
[366119606,1750073463133,-490.0,0.00016602,2]
[366119607,1750073463144,-1083.74,0.00016602,2]
[366119608,1750073463156,-218.553934,0.00016602,2]
[366119609,1750073463166,-490.0,0.00016602,2]
[366119610,1750073463176,-490.0,0.00016602,2]
[366119611,1750073463186,-218.553934,0.00016602,2]
[366119612,1750073463196,-218.553934,0.00016602,2]
[366119613,1750073463206,-218.553934,0.00016602,2]
[366119614,1750073463216,-490.0,0.00016602,2]
[366119615,1750073463226,-1359.71,0.00016602,2]
[366119616,1750073463237,-3042.71,0.00016602,2]
[366119617,1750073463247,-490.0,0.00016602,2]
[366119618,1750073463258,-218.553934,0.00016602,2]
[366119619,1750073463268,-218.553934,0.00016602,2]
[366119620,1750073463278,-1052.61,0.00016602,2]
[366119621,1750073463288,-218.553934,0.00016602,2]
[366119622,1750073463297,-952.95,0.00016602,2]
[366119623,1750073463307,-218.553934,0.00016602,2]
[366119624,1750073463319,-1609.79,0.00016602,2]
[366119625,1750073463331,-490.0,0.00016602,2]
[366119626,1750073463341,-490.0,0.00016602,2]
[366119627,1750073463351,-678.55,0.00016602,2]
[366119628,1750073463361,-490.0,0.00016602,2]
[366119629,1750073463371,-705.81,0.00016602,2]
[366119630,1750073463381,-490.0,0.00016602,2]
[366119631,1750073463391,-1042.74,0.00016602,2]
[366119632,1750073463404,-490.0,0.00016602,2]
[366119633,1750073463417,-490.0,0.00016602,2]
[366119634,1750073463427,-490.0,0.00016602,2]
[366119635,1750073463438,-490.0,0.00016602,2]
[366119636,1750073463448,-300.0,0.00016602,2]
[366119637,1750073463459,-3014.3,0.00016602,2]
[366119638,1750073463469,-1111.59,0.00016602,2]
[366119639,1750073463479,-1992.66,0.00016602,2]
[366119640,1750073463491,-490.0,0.00016602,2]
[366119641,1750073463502,-490.0,0.00016602,2]
[366119642,1750073463512,-490.0,0.00016602,2]
[366119643,1750073463523,-490.0,0.00016602,2]
[366119644,1750073463533,-655.03,0.00016602,2]
[366119645,1750073463543,-1446.38,0.00016602,2]
[366119646,1750073463553,-2687.41,0.00016602,2]
[366119647,1750073463564,-490.0,0.00016602,2]
[366119648,1750073463574,-3180.23,0.00016602,2]
[366119649,1750073463584,-490.0,0.00016602,2]
[366119650,1750073463594,-643.76,0.00016602,2]
[366119651,1750073463604,-3096.34,0.00016602,2]
[366119652,1750073463615,-2275.76,0.00016602,2]
[366119653,1750073463625,-977.89,0.00016602,2]
[366119654,1750073463636,-862.07,0.00016602,2]
[366119655,1750073463646,-490.0,0.00016602,2]
[366119656,1750073463657,-490.0,0.00016602,2]
[366119657,1750073463668,-490.0,0.00016602,2]
[366119658,1750073463678,-1345.36,0.00016602,2]
[366119659,1750073463688,-490.0,0.00016602,2]
[366119660,1750073463697,-257.484281,0.00016604,2]
[366119661,1750073463707,-257.484281,0.00016604,2]
[366119662,1750073463717,-168.0,0.00016615,2]
[366119663,1750073463727,-257.484281,0.00016615,2]
[366119664,1750073463738,-257.484281,0.00016615,2]
[366119665,1750073463748,-151.0,0.00016615,2]
[366119666,1750073463759,-151.0,0.00016615,2]
[366119667,1750073463768,-363.522909,0.00016615,2]
[366119668,1750073463779,-363.522909,0.00016615,2]
[366119669,1750073463789,-227.249347,0.00016615,2]
[366119670,1750073463799,-227.249347,0.00016615,2]
[366119671,1750073463809,-826.64613972,0.00016624,2]
[366119672,1750073463819,-2698.0,0.00016648,9]
[366119673,1750073463830,-150.0,0.00016654,2]
[366119674,1750073463840,-826.64613972,0.00016659,2]
[366119675,1750073463849,-257.484281,0.00016659,2]
[366119676,1750073463859,-257.484281,0.00016659,2]
[366119677,1750073463870,-504.113114,0.00016659,2]
[366119678,1750073463881,-501.248759,0.00016659,2]
[366119679,1750073463891,-501.248759,0.00016659,2]
[366119680,1750073463904,-250.0,0.00016659,2]
[366119681,1750073463915,-186.105,0.00016659,2]
[366119682,1750073463926,-170.0,0.00016659,2]
[366119683,1750073463937,-150.0,0.00016659,2]
[366119684,1750073463948,-150.354,0.00016659,2]
[366119685,1750073463958,-150.221,0.00016659,2]
[366119686,1750073463968,-150.0,0.00016659,2]
[366119687,1750073463978,-286.896,0.00016659,2]
[366119688,1750073463988,-150.241,0.00016659,2]
[366119689,1750073463999,-231.53506903,0.00016673,2]
[366119690,1750073464009,-500.0,0.00016673,2]
[366119691,1750073464020,-500.0,0.00016673,2]
[366119692,1750073464030,-500.0,0.00016673,2]
[366119693,1750073464040,-500.0,0.00016673,2]
[366119694,1750073464050,-500.0,0.00016673,2]
[366119695,1750073464059,-500.0,0.00016673,2]
[366119696,1750073464070,-500.0,0.00016673,2]
[366119697,1750073464081,-500.0,0.00016673,2]
[366119698,1750073464092,-165.70071311,0.00016673,2]
[366119699,1750073464103,-616.39592833,0.00016673,2]
[366119700,1750073464114,-500.0,0.00016673,2]
[366119701,1750073464124,-500.0,0.00016673,2]
[366119702,1750073464135,-153.65352484,0.00016673,2]
[366119703,1750073464145,-500.0,0.00016673,2]
[366119704,1750073464157,-160.0158634,0.00016673,2]
[366119705,1750073464168,-515.08099683,0.00016673,2]
[366119706,1750073464178,-500.0,0.00016673,2]
[366119707,1750073464187,-500.0,0.00016673,2]
[366119708,1750073464198,-500.0,0.00016673,2]
[366119709,1750073464208,-500.0,0.00016673,2]
[366119710,1750073464231,-500.0,0.00016673,2]
[366119711,1750073464243,-500.0,0.00016673,2]
[366119712,1750073464254,-500.0,0.00016673,2]
[366119713,1750073464265,-513.0061361,0.00016673,2]
[366119714,1750073464276,-500.0,0.00016673,2]
[366119715,1750073464287,-500.0,0.00016673,2]
[366119716,1750073464425,-500.0,0.00016673,2]
[366119717,1750073464436,-161.29017723,0.00016673,2]
[366119718,1750073464446,-500.0,0.00016673,2]
[366119719,1750073464455,-509.92850002,0.00016673,2]
[366119720,1750073464466,-536.6988284,0.00016673,2]
[366119721,1750073464476,-500.0,0.00016673,2]
[366119722,1750073464486,-317.80651164,0.00016673,2]
[366119723,1750073464496,-155.85503632,0.00016673,2]
[366119724,1750073464505,-500.0,0.00016673,2]
[366119725,1750073464518,-151.0,0.00016673,2]
[366119726,1750073464528,-151.0,0.00016673,2]
[366119727,1750073464538,-160.050184,0.00016673,2]
[366119728,1750073464547,-160.050184,0.00016673,2]
[366119729,1750073464556,-331.981144,0.00016673,2]
[366119730,1750073464566,-331.981144,0.00016673,2]
[366119731,1750073464575,-361.079346,0.00016673,2]
[366119732,1750073464585,-151.0,0.00016673,2]
[366119733,1750073464594,-151.0,0.00016673,2]
[366119734,1750073464604,-151.0,0.00016673,2]
[366119735,1750073464621,-151.0,0.00016673,2]
[366119736,1750073464631,-151.0,0.00016673,2]
[366119737,1750073464642,-151.0,0.00016673,2]
[366119738,1750073464651,-189.297716,0.00016673,2]
[366119739,1750073464663,-189.297716,0.00016673,2]
[366119740,1750073464673,-637.0,0.00016675,2]
[366119741,1750073464682,-802.0,0.00016675,2]
[366119742,1750073464692,-1277.0,0.00016675,2]
[366119743,1750073464702,-2003.0,0.00016675,2]
[366119744,1750073464712,-928.0,0.00016675,2]
[366119745,1750073464722,-558.0,0.00016675,2]
[366119746,1750073464731,-590.0,0.00016675,2]
[366119747,1750073464741,-1674.0,0.00016675,2]
[366119748,1750073464751,-1160.0,0.00016675,2]
[366119749,1750073464760,-156.352,0.00016675,2]
[366119750,1750073464769,-4090.0,0.00016675,2]
[366119751,1750073464778,-7112.0,0.00016675,2]
[366119752,1750073464788,-3333.0,0.00016675,2]
[366119753,1750073464798,-151.0,0.00016675,2]
[366119754,1750073464809,-1088987.68918073,0.0001668,2]
[366119755,1750073464819,-217.515172,0.0001668,2]
[366119756,1750073464828,-151.0,0.0001668,2]
[366119757,1750073464838,-151.0,0.0001668,2]
[366119758,1750073464848,-151.0,0.0001668,2]
[366119759,1750073464858,-151.0,0.0001668,2]
[366119760,1750073464869,-257.484281,0.0001668,2]
[366119761,1750073464879,-257.484281,0.0001668,2]
[366119762,1750073464890,-151.0,0.0001668,2]
[366119763,1750073464900,-151.0,0.0001668,2]
[366119764,1750073464911,-151.0,0.0001668,2]
[366119765,1750073464921,-151.0,0.0001668,2]
[366119766,1750073464932,-321.629011,0.0001668,2]
[366119767,1750073464942,-321.629011,0.0001668,2]
[366119768,1750073464952,-151.0,0.0001668,2]
[366119769,1750073464962,-167.787668,0.0001668,2]
[366119770,1750073464973,-167.787668,0.0001668,2]
[366119771,1750073464983,-151.0,0.0001668,2]
[366119772,1750073464993,-160.050184,0.0001668,2]
[366119773,1750073465002,-160.050184,0.0001668,2]
[366119774,1750073465013,-151.0,0.0001668,2]
[366119775,1750073465023,-151.0,0.0001668,2]
[366119776,1750073465032,-504.113108,0.0001668,2]
[366119777,1750073465042,-151.0,0.0001668,2]
[366119778,1750073465052,-363.522909,0.0001668,2]
[366119779,1750073465062,-363.522909,0.0001668,2]
[366119780,1750073465072,-501.248759,0.0001668,2]
[366119781,1750073465082,-501.248754,0.0001668,2]
[366119782,1750073465092,-227.249347,0.0001668,2]
[366119783,1750073465102,-227.249347,0.0001668,2]
[366119784,1750073465111,-160.114818,0.0001668,2]
[366119785,1750073465121,-160.114818,0.0001668,2]
[366119786,1750073465131,-223.322793,0.0001668,2]
[366119787,1750073465141,-223.322793,0.0001668,2]
[366119788,1750073465150,-151.0,0.0001668,2]
[366119789,1750073465162,-246.708445,0.0001668,2]
[366119790,1750073465171,-246.708445,0.0001668,2]
[366119791,1750073465181,-309.380826,0.0001668,2]
[366119792,1750073465191,-309.380826,0.0001668,2]
[366119793,1750073465201,-253.727265,0.0001668,2]
[366119794,1750073465212,-160.671911,0.0001668,2]
[366119795,1750073465222,-253.727265,0.0001668,2]
[366119796,1750073465233,-160.671911,0.0001668,2]
[366119797,1750073465243,-309.65892,0.0001668,2]
[366119798,1750073465254,-309.65892,0.0001668,2]
[366119799,1750073465263,-151.0,0.0001668,2]